Cogmind - Beta 13 @@@ ROGUE MODE // 2024.04.20 @ 17:12:22 Player: f3-rnm Result: Destroyed by S-43 Plague with Heavy Machine Gun Performance ------------- Evolutions (7) 3500 Regions Visited (18) 3600 Robots Destroyed (194) 970 Value Destroyed (11766) 11766 Prototype IDs (24) 480 Alien Tech Used (1) 200 Bonus (7385) 7385 TOTAL SCORE: 27901 Bonus ------- High Alert Combat Kills 1308 Follower Combat Kills 1730 Entered Garrisons 1200 Used RIF Installer 3500 Friendly Fire -353 Cogmind --------- Core Integrity 0/1300 Matter 220/300 Energy 98/100 System Corruption 6% Temperature Cool (0) Movement Core (50) Location -3/Quarantine Parts ------- > --- POWER (1) -------- (None) > --- PROPULSION (7) --- (None) > --- UTILITY (11) ----- Advanced Launcher Guidance Computer Relay Coupler [Proto] (15) Relay Coupler [Proto] (15) > --- WEAPON (2) ------- (None) > --- INVENTORY (5) ---- Large Storage Unit Improved Transmission Jammer Phase Armor Peak State ------------ > --- POWER ------------ Micro Nuclear Core > --- PROPULSION ------- Advanced Heavy Treads Flexi-carbon Leg Flexi-carbon Leg Flexi-carbon Leg Flexi-carbon Leg Myomer Leg > --- UTILITY ---------- Advanced Power Amplifier Huge Storage Unit Experimental Matter Compressor Advanced Launcher Guidance Computer Advanced Launcher Guidance Computer Experimental Focal Shield Relay Coupler [NC] Relay Coupler [Swarmer] Relay Coupler [Sentry] Relay Coupler [Hunter] Relay Coupler [Proto] > --- WEAPON ----------- Improved Remote Datajack Impact Mace > --- INVENTORY -------- Micro Fission Core Myomer Leg Compact Wheel VTOL Module VTOL Module VTOL Module Improved Surge Thruster Improved Surge Thruster Cooled Impulse Thruster Impulse Thruster Array Compact Battery Medium Reflective Plating Relay Coupler [Swarmer] Relay Coupler [Hunter] Relay Coupler [Proto] Relay Coupler [Proto] Relay Coupler [Proto] Relay Coupler [Proto] Relay Coupler [Proto] Relay Coupler [Proto] Gamma Bomb Array Gamma Bomb Array Gamma Bomb Array Improved Remote Datajack [Rating: 137] Favorites ----------- Power Cooled Deuterium Engine Engine Cooled Deuterium Engine Power Core Neutrino Core Reactor Heavy Antimatter Reactor Propulsion Light Treads Treads Light Treads Leg Flexi-carbon Leg Wheel Wheel Flight Unit Improved Surge Thruster Utility Relay Coupler [NC] Device Advanced Cooling System Storage High-capacity Storage Unit Processor Advanced Launcher Guidance Computer Hackware Relay Coupler [NC] Protection Light Armor Plating Artifact Phase Armor Weapon Improved Remote Datajack Energy Gun Heavy Laser Energy Cannon Advanced Plasma Cannon Ballistic Gun Enhanced Autogun Ballistic Cannon Advanced Assault Cannon Launcher Rocket Array Special Weapon Improved Remote Datajack Impact Weapon Impact Mace Build | -11 -10 -10 -8 -8 -8 -8 -7 -7 -7 -6 -6 -6 -6 -5 -4 -4 -3 -3 ------- Run | Yrd Mat Sub Mat Gar Mat Gar Fac Gar Fac Fac Gar Fac Gar Fac Fac Gar Res Qua Slots Evolved 14 | . . . 4 . . . 2 . . 2 . . . 2 2 . 2 . Power . | . . . . . . . . . . . . . . . . . . . Propulsion 5 | . . . 2 . . . . . . 1 . . . 1 . . 1 . Utility 9 | . . . 2 . . . 2 . . 1 . . . 1 2 . 1 . Weapon . | . . . . . . . . . . . . . . . . . . . Parts Attached 338 | 6 12 8 16 20 22 26 11 15 20 14 39 1 18 5 2 61 21 21 Power 24 | 1 2 1 1 2 3 1 2 1 1 . 2 . 1 . 1 4 . 1 Engine 11 | 1 2 1 1 1 2 1 . . 1 . 1 . . . . . . . Core 11 | . . . . 1 1 . 2 1 . . 1 . 1 . . 3 . 1 Reactor 2 | . . . . . . . . . . . . . . . 1 1 . . Propulsion 96 | 2 1 1 6 8 5 7 3 5 4 4 9 1 8 . . 19 11 2 Treads 44 | 2 1 1 5 7 5 4 3 4 3 . 2 1 . . . 5 1 . Leg 33 | . . . . . . 2 . 1 . 3 6 . 8 . . 11 2 . Wheel 8 | . . . 1 1 . 1 . . 1 1 1 . . . . 2 . . Hover . | . . . . . . . . . . . . . . . . . . . Flight 11 | . . . . . . . . . . . . . . . . 1 8 2 Utility 116 | 1 3 1 5 4 10 8 2 6 4 8 17 . 7 4 1 18 7 10 Device 36 | . . . 1 2 6 4 . 2 2 2 6 . . 3 . 6 2 . Storage 11 | 1 2 . 1 . 1 . . . 1 . 1 . 1 . . . 2 1 Processor 4 | . . . . . . . 1 1 . . . . . . . 2 . . Hackware 40 | . . . . 1 . 4 1 1 . 4 7 . 4 1 1 6 3 7 Protection 23 | . 1 1 3 1 3 . . 2 1 2 3 . 2 . . 4 . . Artifact 2 | . . . . . . . . . . . . . . . . . . 2 Weapon 102 | 2 6 5 4 6 4 10 4 3 11 2 11 . 2 1 . 20 3 8 Energy Gun 4 | . . . . . 2 1 . . . . 1 . . . . . . . Energy Cannon 11 | . . 1 . 1 . . 1 . 2 1 1 . . . . 4 . . Ballistic Gun 29 | 2 4 1 4 3 2 5 . 1 1 . 1 . . . . 4 1 . Ballistic Cannon 18 | . . 1 . 1 . . 2 1 1 . 4 . 1 . . 5 . 2 Launcher 11 | . 2 2 . . . 2 . . 3 . 2 . . . . . . . Special Weapon 20 | . . . . 1 . 1 1 1 3 1 1 . 1 1 . 3 2 4 Impact Weapon 9 | . . . . . . 1 . . 1 . 1 . . . . 4 . 2 Slashing Weapon . | . . . . . . . . . . . . . . . . . . . Piercing Weapon . | . . . . . . . . . . . . . . . . . . . Special Melee Weapon . | . . . . . . . . . . . . . . . . . . . Unidentified Prototypes 10 | . . . 1 . . . 1 . 3 . . . . . 1 . 3 1 Corrupted Parts 7 | . . . . . . . . . . . . . . . . 7 . . System Corruption 34 | . . . . . . . . . . . . . . . . 34 . . Parts Lost 130 | . 1 5 4 8 5 8 . 6 8 8 26 . 1 . . 29 . 21 Power 11 | . 1 1 1 1 . 1 . 1 . . 1 . . . . 2 . 2 Propulsion 51 | . . 1 3 4 1 3 . 5 3 2 11 . . . . 11 . 7 Utility 47 | . . 2 . 1 2 2 . . 4 4 11 . . . . 12 . 9 Weapon 21 | . . 1 . 2 2 2 . . 1 2 3 . 1 . . 4 . 3 Highest Loss Streak 16 | . 1 3 2 4 2 5 . 2 7 6 12 . 1 . . 13 . 16 To Critical Strikes 3 | . . 1 . . . . . . . . 1 . . . . 1 . . Average Slot Usage (%) 89 | . 91 99 98 95 96 96 96 95 89 71 76 73 96 90 85 76 91 72 Engine 4 | . 13 14 8 6 3 9 1 . 4 6 3 . . . . . . . Core 2 | . . . . 2 5 . 4 7 1 . 1 6 6 5 4 1 4 3 Treads 16 | . 27 28 26 26 33 23 26 24 20 1 2 6 3 . . 4 1 . Leg 7 | . . . . . . 3 . 1 . 8 14 6 27 29 26 19 18 . Wheel 2 | . . . 9 7 . 8 3 . 1 8 2 . . . . . . . Device 8 | . . . 7 9 14 17 15 12 11 8 10 13 2 4 5 6 6 5 Storage 7 | . 14 14 9 9 9 9 7 6 6 6 6 6 6 5 5 5 4 3 Processor 1 | . . . . . . . 6 5 5 . . . . . . 2 9 4 Hackware 12 | . . . . 5 2 4 13 13 11 14 19 26 29 29 27 20 26 29 Protection 5 | . 7 13 18 10 9 2 . 2 5 6 1 . 5 5 5 3 1 . Energy Gun 1 | . . . . . 8 2 . . . . 2 . . . . . . . Energy Cannon 2 | . . 11 4 1 . . 6 6 5 3 3 6 2 . . 1 . . Ballistic Gun 6 | . 27 4 13 12 9 10 . 2 5 . . . . . . 2 . . Ballistic Cannon 2 | . . 7 . 3 . . 3 5 1 1 2 . 3 5 5 . . . Special Weapon 1 | . . . . . . 1 2 1 4 . . . 3 2 5 3 3 . Naked Turns . | . . . . . . . . . . . . . . . . . . . Heaviest Build 142 | 11 31 34 66 69 69 69 69 86 119 117 110 57 117 112 116 142 119 35 Greatest Support 193 | 40 40 40 60 60 80 80 114 114 88 38 80 30 103 103 103 193 115 48 Greatest Overweight (x) 11 | . . . 6 6 1 6 6 2 11 10 5 1 1 1 1 8 3 1 Average Overweight (x) 1 | . . . 2 4 . 4 2 . 3 2 2 1 . 1 1 . . . Largest Inventory Capacity 25 | 8 15 15 20 20 20 20 20 20 25 25 25 20 25 25 25 25 25 15 Average Capacity 20 | 6 11 15 18 20 20 20 20 20 23 25 20 20 23 25 25 25 23 13 Most Carried 25 | 2 11 14 20 20 20 20 20 20 25 25 23 20 25 25 25 25 25 15 Average Carried 18 | . 7 11 16 19 19 19 19 19 22 20 18 19 22 24 24 23 22 12 Final Capacity 25 | 8 15 15 20 20 20 20 20 20 25 25 20 20 25 25 25 25 15 5 Final Carried 25 | 2 10 11 20 20 20 20 20 20 24 23 20 18 25 24 25 25 15 4 Class Distribution -------------------- 26% | Scavenger-Mutant 24% | Botlord-Mutant 18% | Mutant 15% | Bothacker-Mutant 11% | Bothacker-Tank 3% | Botlord-Sprinter Dominant Class ---------------- Mutant | -10/Materials Mutant | -10/Subcaves Mutant | -8/Materials Scavenger-Mutant | -8/Garrison Scavenger-Mutant | -8/Materials Bothacker-Mutant | -8/Garrison Bothacker-Mutant | -7/Factory Bothacker-Mutant | -7/Garrison Bothacker-Tank | -7/Factory Scavenger-Mutant | -6/Factory Botlord-Mutant | -6/Garrison Botlord-Mutant | -6/Factory Botlord-Mutant | -6/Garrison Botlord-Mutant | -5/Factory Botlord-Mutant | -4/Factory Botlord-Mutant | -4/Garrison Botlord-Mutant | -3/Research Botlord-Sprinter | -3/Quarantine Resources | -11 -10 -10 -8 -8 -8 -8 -7 -7 -7 -6 -6 -6 -6 -5 -4 -4 -3 -3 ----------- Run | Yrd Mat Sub Mat Gar Mat Gar Fac Gar Fac Fac Gar Fac Gar Fac Fac Gar Res Qua Matter Collected 8692 | 194 153 352 403 804 673 786 279 555 507 193 912 . 895 197 . 1285 207 297 Remotely . | . . . . . . . . . . . . . . . . . . . Salvage Created 7881 | . 241 400 379 800 682 723 318 499 802 193 990 . 324 . . 1233 82 215 Parts 392 | . 22 24 30 50 38 40 15 26 36 6 43 . 12 . . 37 4 9 Haulers Intercepted 4 | . 1 . . . 2 . . . 1 . . . . . . . . . Recyclers Shooed 3 | . . . . . . . . . 2 1 . . . . . . . . Parts Field Recycled . | . . . . . . . . . . . . . . . . . . . Retrieved Matter . | . . . . . . . . . . . . . . . . . . . Parts Self-Destructed 8 | . . 8 . . . . . . . . . . . . . . . . Prevented . | . . . . . . . . . . . . . . . . . . . Kills | -11 -10 -10 -8 -8 -8 -8 -7 -7 -7 -6 -6 -6 -6 -5 -4 -4 -3 -3 ------- Run | Yrd Mat Sub Mat Gar Mat Gar Fac Gar Fac Fac Gar Fac Gar Fac Fac Gar Res Qua Combat Hostiles Destroyed 165 | . 8 10 7 23 12 19 6 13 14 3 27 . 5 . . 16 . 2 Melee 4 | . . . . . . 1 . . . . . . . . . 2 . 1 Guns 72 | . 7 1 7 15 12 18 . 1 4 . 1 . . . . 6 . . Cannons 63 | . . 7 . 7 . . 6 12 4 3 14 . 5 . . 4 . 1 AOE 21 | . 1 2 . 1 . . . . 5 . 12 . . . . . . . Classes Destroyed 20 | . 6 2 1 2 . 1 1 . 3 . 1 . 1 . . 2 . . Worker 7 | . 2 . 1 . 2 . . . 2 . . . . . . . . . Builder 2 | . 1 . . . . . 1 . . . . . . . . . . . Tunneler 1 | . . . . . . . . . 1 . . . . . . . . . Hauler 5 | . 1 . . . 2 . . . 1 . . . . . . . 1 . Recycler 3 | . . . . . . . . . 3 . . . . . . . . . Operator 2 | . . . . . . . 1 . . . . . . . . . . 1 Watcher 8 | . 1 . . . 1 . . . . . 1 . 1 . . 2 . 2 Swarmer 29 | . 6 1 . 6 4 7 . 3 . . 2 . . . . . . . Cutter 3 | . . . . . . . . . . . 3 . . . . . . . Grunt 64 | . 2 . 2 8 3 9 5 3 10 3 8 . 4 . . 7 . . Brawler 1 | . . . . . . . . . 1 . . . . . . . . . Duelist 3 | . . . . . . 1 . 1 . . 1 . . . . . . . Protector 1 | . . . . . . . . . . . . . . . . 1 . . Sentry 24 | . . 1 4 5 4 1 . 3 . . 4 . . . . 2 . . Demolisher 1 | . . . . . . . . . . . . . . . . 1 . . Specialist 2 | . . . . . . . . . . . . . 2 . . . . . Hunter 8 | . . . 1 . 1 . . . . . 6 . . . . . . . Programmer 18 | . . . . 3 . . 1 2 3 . 3 . . . . 4 . 2 Behemoth 3 | . . . . 1 . 1 . 1 . . . . . . . . . . Subdweller 8 | . . 8 . . . . . . . . . . . . . . . . Thug 1 | . . . . . . . . . . . . . . . . 1 . . Best Kill Streak 7 | . 3 4 3 4 6 5 6 4 6 3 7 . 2 . . 3 . 1 Combat Bots Only 7 | . 3 4 3 4 5 5 6 4 3 3 7 . 2 . . 3 . 1 Max Kills in Single Turn 4 | . 2 1 1 1 1 2 1 1 3 1 4 . 1 . . 1 1 1 Gunslinging 1 | . . . . . . 1 . . . . . . . . . . . . Exploded 4 | . 1 1 . 1 . . . . 3 . 4 . . . . . . . Melee 1 | . . . . . . 1 . . . . . . . . . 1 . 1 Uniques/NPCs Destroyed . | . . . . . . . . . . . . . . . . . . . Combat | -11 -10 -10 -8 -8 -8 -8 -7 -7 -7 -6 -6 -6 -6 -5 -4 -4 -3 -3 -------- Run | Yrd Mat Sub Mat Gar Mat Gar Fac Gar Fac Fac Gar Fac Gar Fac Fac Gar Res Qua Hostile Shots Fired 1951 | . 36 62 50 212 82 113 49 146 76 78 381 . 40 2 . 378 18 228 Missed 584 | . 12 16 12 68 15 22 9 43 18 20 119 . 11 2 . 91 13 113 Damage Taken 22864 | . 280 954 569 2162 841 1371 626 1119 1652 1111 2919 . 844 . . 5690 215 2511 Core 4090 | . 74 112 58 244 24 102 64 126 391 186 415 . 84 . . 892 59 1259 Absorbed by Shields 912 | . . . . 53 64 . . . . . 505 . . . . 290 . . Reduced by Siege Mode 6 | . . . . . . . . . . . . . . . . 6 . . Redirected to Core 49 | . . . . . . . . . . . . . . . . . . 49 Redirected to Shielding 55 | . . . . . . . . . . 44 11 . . . . . . . Ignored by Resistances 325 | . . . . . 34 60 . . . . . . . . . 141 75 15 Regen/Repaired (Parts) 279 | . . . . . 53 . . . 149 . . . . . . . . 77 Core Remaining (%) 43 | 100 . 25 . . . 22 . . 17 . . . 19 100 . 22 . . Volleys Fired 977 | . 33 85 24 128 61 75 32 59 67 17 93 . 94 11 1 166 23 8 Largest 3 | . 2 2 2 2 2 2 1 3 3 1 2 . 1 1 1 2 1 1 Hottest 255 | . 50 99 90 81 134 255 98 183 183 98 151 . 90 48 7 122 30 66 Shots Fired 1374 | . 66 137 47 186 121 133 32 108 97 17 115 . 95 11 1 177 23 8 Gun 616 | . 61 7 38 145 121 122 . 15 36 . 8 . . . . 61 2 . Cannon 611 | . . 126 9 41 . . 29 91 40 17 98 . 58 2 . 93 . 7 Launcher 20 | . 5 4 . . . 4 . . 2 . 5 . . . . . . . Special 127 | . . . . . . 7 3 2 19 . 4 . 37 9 1 23 21 1 Kinetic 870 | . 61 53 38 174 77 117 8 57 43 . 71 . 51 2 . 109 2 7 Thermal 300 | . . 80 9 . 44 5 21 49 33 17 35 . 7 . . . . . Explosive 20 | . 5 4 . . . 4 . . 2 . 5 . . . . . . . Electromagnetic 57 | . . . . 12 . . . . . . . . . . . 45 . . Robot Hit Streak 40 | . 4 14 16 14 8 11 4 15 24 7 16 . 24 15 16 40 8 9 Robot Miss Streak 8 | . 8 2 2 5 4 3 3 4 6 2 5 . 2 . . 5 6 3 Penetration Max 1 | . . . . 1 . . . . . . . . . . . . . . Secondary Targets 10 | . . . 1 2 4 3 . . . . . . . . . . . . Max Gunslinging Chain 1 | . . . 1 1 1 1 . . . . . . . . . . . . Capacitor 9 | . . . . . . . . . . . . . . . . 9 . . Shots Hit Robots 887 | . 28 85 37 108 69 83 14 71 66 13 71 . 71 11 1 135 14 10 Core Hits 415 | . 18 22 16 63 25 35 8 26 61 6 77 . 15 . . 36 1 6 Critical Kills 7 | . . 1 . 1 . 1 . . 1 . . . . . . 2 . 1 Critical Parts Destroyed 6 | . . . . 1 1 . . . . . . . . . . 4 . . Critical Strikes 26 | . . 1 . 2 4 1 . 3 1 . 1 . 3 1 . 8 . 1 Burn 3 | . . . . . 3 . . . . . . . . . . . . . Meltdown 2 | . . 1 . . . . . . 1 . . . . . . . . . Destroy 8 | . . . . 2 1 . . . . . . . . . . 5 . . Blast 10 | . . . . . . . . 3 . . 1 . 3 1 . 2 . . Smash 3 | . . . . . . 1 . . . . . . . . . 1 . 1 Melee Attacks 48 | . . . . . . 5 . . . . 2 . . . . 17 2 22 Impact 48 | . . . . . . 5 . . . . 2 . . . . 17 2 22 Slashing . | . . . . . . . . . . . . . . . . . . . Piercing . | . . . . . . . . . . . . . . . . . . . Sneak Attacks 1 | . . . . . . 1 . . . . . . . . . . . . Combat Hostiles 1 | . . . . . . 1 . . . . . . . . . . . . Follow-up Attacks . | . . . . . . . . . . . . . . . . . . . Damage Inflicted 22598 | . 517 1672 583 2389 1231 1594 541 2287 2117 428 3662 . 896 57 . 3973 45 606 Guns 7368 | . 312 77 441 1489 1231 1515 . 312 622 . 168 . . . . 1156 45 . Cannons 11379 | . . 1475 142 813 . . 535 1975 870 422 1685 . 896 51 . 2332 . 183 Explosions 2784 | . 200 120 . 61 . . . . 625 . 1778 . . . . . . . Melee 906 | . . . . . . 79 . . . . . . . . . 475 . 352 Ramming 161 | . 5 . . 26 . . 6 . . 6 31 . . 6 . 10 . 71 Kinetic 12555 | . 312 553 441 2241 807 1515 175 1107 819 . 1151 . 733 51 . 2422 45 183 Thermal 5126 | . . 999 142 61 424 . 360 1180 673 422 702 . 163 . . . . . Explosive 2723 | . 200 120 . . . . . . 625 . 1778 . . . . . . . Electromagnetic 1127 | . . . . 61 . . . . . . . . . . . 1066 . . Impact 906 | . . . . . . 79 . . . . . . . . . 475 . 352 Slashing . | . . . . . . . . . . . . . . . . . . . Piercing . | . . . . . . . . . . . . . . . . . . . Highest Corruption 37 | . . . 3 7 7 7 2 2 4 . 5 5 5 . . 37 . 6 Average Corruption 6 | . . . 2 4 7 7 1 2 3 . 5 5 5 . . 23 . 4 Corruption Purged . | . . . . . . . . . . . . . . . . . . . Corruption Blocked . | . . . . . . . . . . . . . . . . . . . Effects 267 | . . . 1 34 40 49 8 16 30 . 14 . 34 . . 40 . 1 Message Errors 62 | . . . . 7 8 13 2 6 7 . 3 . 9 . . 7 . . Matter Fused 72 | . . . 1 8 11 14 5 2 9 . 6 . 4 . . 11 . 1 Heat Flow Errors 24 | . . . . 3 1 3 . 2 4 . . . 6 . . 5 . . Energy Discharges 42 | . . . . 4 6 7 . 4 6 . 2 . 6 . . 7 . . Parts Fused 1 | . . . . . . . . . . . . . . . . 1 . . Data Loss (minor) 30 | . . . . 7 6 4 1 1 1 . 1 . 6 . . 3 . . Data Loss (major) 12 | . . . . . 4 3 . 1 2 . . . . . . 2 . . Misfires 8 | . . . . 2 1 2 . . 1 . . . 2 . . . . . Alerts 9 | . . . . 2 1 2 . . . . 2 . . . . 2 . . Misdirections 2 | . . . . . . . . . . . . . . . . 2 . . Weapon Failures 5 | . . . . 1 2 1 . . . . . . 1 . . . . . Overload Shots 3 | . . . . . . 3 . . . . . . . . . . . . Overflow Damage 302 | . . . . . . . 2 19 42 . 36 . 2 . . 117 . 84 Projectiles 114 | . . . . . . . 2 19 42 . 12 . 2 . . 37 . . Explosions 24 | . . . . . . . . . . . 24 . . . . . . . Melee 164 | . . . . . . . . . . . . . . . . 80 . 84 Knockbacks 42 | . . 6 . 8 . . 2 1 . . 4 . 4 . . 12 . 5 Impact 9 | . . . . . . . . . . . . . . . . 5 . 4 Kinetic 30 | . . 6 . 8 . . 2 1 . . 3 . 4 . . 5 . 1 Secondary 3 | . . . . . . . . . . . 1 . . . . 2 . . Self-Inflicted Damage 518 | . . . . 12 . 25 . . 27 3 280 . . . . . . 171 Shots 15 | . . . . . . 1 . . 1 . 12 . . . . . . 1 Rammed 25 | . 2 . . 8 1 . 1 . . 1 5 . . . . 1 . 6 Targets Rammed 27 | . 2 . . 8 1 . 1 . . 1 6 . . 1 . 1 . 6 Kicked 2 | . . . . . . . . . . . 1 . . 1 . . . . Crushed . | . . . . . . . . . . . . . . . . . . . Highest Temperature 363 | . 15 7 159 191 168 183 235 278 221 9 150 . 229 . . 256 27 363 Average Temperature 60 | . 6 3 42 29 36 56 101 85 88 9 58 . 64 . . 84 14 70 Received Heat Transfer 5367 | . 24 150 216 579 347 498 261 201 216 411 580 . 261 . . 869 9 745 Siege Activations 1 | . . . . . . . . . . . . . . . . 1 . . Total Turns 10 | . . . . . . . . . . . . . . . . 10 . . Longest Duration 10 | . . . . . . . . . . . . . . . . 10 . . Robots Corrupted 5 | . . . . . . . . . . . . . . . . 5 . . Combat Hostiles 5 | . . . . . . . . . . . . . . . . 5 . . Parts Fried 20 | . . . . . . . . . . . . . . . . 17 . 3 Impact Corruptions 9 | . . . . . . . . . . . 1 . . . . 3 . 5 Robots Melted 2 | . . 1 . . . . . . 1 . . . . . . . . . Combat Hostiles 2 | . . 1 . . . . . . 1 . . . . . . . . . Parts Melted 15 | . . 3 . 2 2 . . 3 . 3 1 . 1 . . . . . Heat Transferred 8650 | . . 2109 296 100 1073 . 550 1700 950 650 972 . 250 . . . . . Parts Sabotaged . | . . . . . . . . . . . . . . . . . . . Parts Stolen . | . . . . . . . . . . . . . . . . . . . Parts Stripped . | . . . . . . . . . . . . . . . . . . . Power Chain Reactions 1 | . . . . 1 . . . . . . . . . . . . . . Alert | -11 -10 -10 -8 -8 -8 -8 -7 -7 -7 -6 -6 -6 -6 -5 -4 -4 -3 -3 ------- Run | Yrd Mat Sub Mat Gar Mat Gar Fac Gar Fac Fac Gar Fac Gar Fac Fac Gar Res Qua Peak Influence 1269 | . 107 . 140 960 679 1269 851 970 528 188 1006 571 890 506 162 1085 833 743 Initial 665 | . . . . 81 468 349 665 458 508 180 . 527 399 466 147 113 609 201 Average 507 | . 58 . 63 532 429 971 706 745 418 137 595 534 574 473 150 502 627 483 Maximum Alert Level 4 | . . . . 3 2 4 3 3 2 . 3 2 3 2 . 3 3 3 Low Security (%) 18 | 100 100 . 100 7 . . . . . 100 6 . . . 100 4 . . Level 1 20 | . . . . 19 48 2 . . 59 . 20 . 10 4 . 41 8 23 Level 2 39 | . . . . 54 51 11 75 35 40 . 39 100 72 95 . 33 73 74 Level 3 17 | . . . . 18 . 40 24 64 . . 34 . 17 . . 19 17 1 Level 4 4 | . . . . . . 45 . . . . . . . . . . . . Level 5 . | . . . . . . . . . . . . . . . . . . . High Security . | . . . . . . . . . . . . . . . . . . . Max Security . | . . . . . . . . . . . . . . . . . . . Squads Dispatched 20 | . . . 1 . 3 . 4 . 5 . . . . . . . 6 1 Investigation 4 | . . . 1 . . . . . 1 . . . . . . . 2 . Extermination 6 | . . . . . . . 2 . 3 . . . . . . . . 1 Reinforcement 7 | . . . . . 1 . 2 . 1 . . . . . . . 3 . Assault 1 | . . . . . . . . . . . . . . . . . 1 . Garrison 2 | . . . . . 2 . . . . . . . . . . . . . Intercept . | . . . . . . . . . . . . . . . . . . . Searches Triggered 2 | . . . . . . . . . . . . . . . . . . 2 Construction Impeded 2 | . . . . . . . 1 . . . . . . . . . 1 . Haulers Reinforced . | . . . . . . . . . . . . . . . . . . . Active Scanning Responses . | . . . . . . . . . . . . . . . . . . . Cargo Convoy Interrupts 1 | . . . . . . . . . 1 . . . . . . . . . Stealth | -11 -10 -10 -8 -8 -8 -8 -7 -7 -7 -6 -6 -6 -6 -5 -4 -4 -3 -3 --------- Run | Yrd Mat Sub Mat Gar Mat Gar Fac Gar Fac Fac Gar Fac Gar Fac Fac Gar Res Qua Distress Signals 7 | . . . . . 2 . . . . . . . 1 . . 2 . 2 Communications Jammed . | . . . . . . . . . . . . . . . . . . . Distress Signals . | . . . . . . . . . . . . . . . . . . . Times Spotted 379 | . 17 11 11 29 27 26 7 16 18 4 38 . 31 6 1 50 24 63 Peak Tracking Total 11 | . 3 2 3 7 4 5 6 5 5 3 7 . 7 2 1 5 8 11 Tactical Retreats 24 | . 2 . . 2 . 2 . . 4 . 1 . . . . . . 13 Traps | -11 -10 -10 -8 -8 -8 -8 -7 -7 -7 -6 -6 -6 -6 -5 -4 -4 -3 -3 ------- Run | Yrd Mat Sub Mat Gar Mat Gar Fac Gar Fac Fac Gar Fac Gar Fac Fac Gar Res Qua Traps Triggered 40 | . 4 . 3 5 . 10 . 4 1 . 7 . 5 . . 1 . . Indirectly . | . . . . . . . . . . . . . . . . . . . Trap Hack Attempts . | . . . . . . . . . . . . . . . . . . . Triggered . | . . . . . . . . . . . . . . . . . . . Disarmed . | . . . . . . . . . . . . . . . . . . . Reprogrammed . | . . . . . . . . . . . . . . . . . . . Reused . | . . . . . . . . . . . . . . . . . . . Traps Extracted . | . . . . . . . . . . . . . . . . . . . Installed . | . . . . . . . . . . . . . . . . . . . Triggered 2 | . . . . . . . . . 1 . . . . . . 1 . . Machines | -11 -10 -10 -8 -8 -8 -8 -7 -7 -7 -6 -6 -6 -6 -5 -4 -4 -3 -3 ---------- Run | Yrd Mat Sub Mat Gar Mat Gar Fac Gar Fac Fac Gar Fac Gar Fac Fac Gar Res Qua Machines Disabled 35 | . . 1 . 2 2 4 . 6 . 1 4 . 3 . . 6 . 6 Max in Single Turn 1 | . . 1 . 1 1 1 . 1 . 1 1 . 1 . . 1 . 1 Garrison Access 2 | . . . . . . . . . . . . . . . . . 1 1 Garrison Relay 19 | . . . . 2 . 4 . 3 . . 3 . 3 . . 4 . . Machines Repaired . | . . . . . . . . . . . . . . . . . . . Machines Dismantled . | . . . . . . . . . . . . . . . . . . . Machines Sabotaged . | . . . . . . . . . . . . . . . . . . . Overloaded Fab Kills . | . . . . . . . . . . . . . . . . . . . Hacking | -11 -10 -10 -8 -8 -8 -8 -7 -7 -7 -6 -6 -6 -6 -5 -4 -4 -3 -3 --------- Run | Yrd Mat Sub Mat Gar Mat Gar Fac Gar Fac Fac Gar Fac Gar Fac Fac Gar Res Qua Machines Accessed 45 | . . 2 2 2 5 5 2 1 4 2 2 1 1 1 3 3 4 5 Terminals 29 | . . . 1 2 2 5 1 1 3 1 2 . 1 . 1 3 3 3 Fabricators . | . . . . . . . . . . . . . . . . . . . Repair Stations 3 | . . . . . 1 . . . 1 . . . . . . . . 1 Recycling Units 2 | . . . . . . . . . . . . . . 1 1 . . . Scanalyzers 1 | . . . . . 1 . . . . . . . . . . . . . Garrison Access 8 | . . . 1 . 1 . 1 . . 1 . 1 . . 1 . 1 1 Total Hacks 88 | . . 3 4 5 13 11 3 2 11 3 4 2 1 1 3 7 6 9 Successful 39 | . . 3 2 2 8 3 2 1 2 1 1 2 1 . 2 2 2 5 Failed 49 | . . . 2 3 5 8 1 1 9 2 3 . . 1 1 5 4 4 Catastrophic 14 | . . . . . 3 3 . . 1 . 1 . . 1 1 2 1 1 Database Lockouts . | . . . . . . . . . . . . . . . . . . . Manual 15 | . . . . . 5 . . . 2 . . . . 1 1 . 3 3 Terminals 64 | . . . 3 5 8 11 2 2 8 2 4 . 1 . 1 7 5 5 Fabricators . | . . . . . . . . . . . . . . . . . . . Repair Stations 8 | . . . . . 2 . . . 3 . . . . . . . . 3 Recycling Units 2 | . . . . . . . . . . . . . . 1 1 . . . Scanalyzers 2 | . . . . . 2 . . . . . . . . . . . . . Garrison Access 9 | . . . 1 . 1 . 1 . . 1 . 2 . . 1 . 1 1 Terminal Hacks 22 | . . 3 1 2 4 3 1 1 . . 1 . 1 . . 2 1 2 Record 2 | . . 2 . . . . . . . . . . . . . . . . Open Door 4 | . . . . 1 . 1 . . . . 1 . . . . 1 . . Branch Access Points 2 | . . . . . 1 . . . . . . . . . . . 1 . Emergency Access Points 3 | . . . . 1 . . 1 . . . . . . . . 1 . . Alert Level 3 | . . . . . 2 . . . . . . . . . . . . 1 Unreport Threat 1 | . . . . . 1 . . . . . . . . . . . . . Security Status 1 | . . . 1 . . . . . . . . . . . . . . . Zone Layout 1 | . . . . . . . . . . . . . . . . . . 1 Garrison Registry 2 | . . . . . . 1 . 1 . . . . . . . . . . Patrol Navigation 1 | . . . . . . . . . . . . . 1 . . . . . Security Stations 1 | . . . . . . 1 . . . . . . . . . . . . Derelict Proto ID Bank 1 | . . 1 . . . . . . . . . . . . . . . . Fabricator Hacks . | . . . . . . . . . . . . . . . . . . . Repair Station Hacks 6 | . . . . . 2 . . . 2 . . . . . . . . 2 Scan Component 3 | . . . . . 1 . . . 1 . . . . . . . . 1 Repair 3 | . . . . . 1 . . . 1 . . . . . . . . 1 Recycling Unit Hacks 1 | . . . . . . . . . . . . . . . 1 . . . Retrieve Components 1 | . . . . . . . . . . . . . . . 1 . . . Scanalyzer 1 | . . . . . 1 . . . . . . . . . . . . . Insert Component 1 | . . . . . 1 . . . . . . . . . . . . . Garrison Access Hacks 9 | . . . 1 . 1 . 1 . . 1 . 2 . . 1 . 1 1 Unlock Access 6 | . . . 1 . 1 . 1 . . 1 . 1 . . 1 . . . Seal Access 2 | . . . . . . . . . . . . . . . . . 1 1 Coupler Status 1 | . . . . . . . . . . . . 1 . . . . . . Unauthorized Hacks . | . . . . . . . . . . . . . . . . . . . Terminals . | . . . . . . . . . . . . . . . . . . . Fabricators . | . . . . . . . . . . . . . . . . . . . Repair Stations . | . . . . . . . . . . . . . . . . . . . Recycling Units . | . . . . . . . . . . . . . . . . . . . Scanalyzers . | . . . . . . . . . . . . . . . . . . . Garrison Access . | . . . . . . . . . . . . . . . . . . . Data Cores Recovered 1 | . . . . . . . . . . . . . . . . . . 1 Used . | . . . . . . . . . . . . . . . . . . . Hacking Detections 28 | . . . 1 2 3 4 . 1 3 1 1 . 1 1 2 3 2 3 Full Trace Events 5 | . . . . . . 1 . . 1 . . . . . . 2 1 . Feedback Events 1 | . . . . . . . . . . . . . . . . 1 . . Corruption 1 | . . . . . . . . . . . . . . . . 1 . . Feedback Blocked . | . . . . . . . . . . . . . . . . . . . Robot Schematics Acquired . | . . . . . . . . . . . . . . . . . . . Robots Built . | . . . . . . . . . . . . . . . . . . . Authchips . | . . . . . . . . . . . . . . . . . . . Time . | . . . . . . . . . . . . . . . . . . . Total Robot Build Rating . | . . . . . . . . . . . . . . . . . . . Part Schematics Acquired . | . . . . . . . . . . . . . . . . . . . Parts Built . | . . . . . . . . . . . . . . . . . . . Authchips . | . . . . . . . . . . . . . . . . . . . Time . | . . . . . . . . . . . . . . . . . . . Total Part Build Rating . | . . . . . . . . . . . . . . . . . . . Parts Repaired 3 | . . . . . 1 . . . 1 . . . . . . . . 1 Time 230 | . . . . . 78 . . . 44 . . . . . . . . 108 Parts Recycled . | . . . . . . . . . . . . . . . . . . . Recycled Matter . | . . . . . . . . . . . . . . . . . . . Retrieved Matter . | . . . . . . . . . . . . . . . . . . . Retrieved Components 3 | . . . . . . . . . . . . . . . 3 . . . Parts Scanalyzed 1 | . . . . . 1 . . . . . . . . . . . . . Part Schematics Acquired . | . . . . . . . . . . . . . . . . . . . Parts Damaged 1 | . . . . . 1 . . . . . . . . . . . . . Bothacking | -11 -10 -10 -8 -8 -8 -8 -7 -7 -7 -6 -6 -6 -6 -5 -4 -4 -3 -3 ------------ Run | Yrd Mat Sub Mat Gar Mat Gar Fac Gar Fac Fac Gar Fac Gar Fac Fac Gar Res Qua Used RIF Installer 7 | . . . . 1 . 1 . 2 . . 1 . 1 . . 1 . . Coupler Efficiency 1 | . . . . . . . . 1 . . . . . . . . . . Watcher Feeds 1 | . . . . . . . . 1 . . . . . . . . . . Patrol Navigation 1 | . . . . . . . . . . . . . . . . 1 . . Structural Interface 1 | . . . . . . 1 . . . . . . . . . . . . Autooverride 1 | . . . . . . . . . . . 1 . . . . . . . Autoassimilate 1 | . . . . . . . . . . . . . 1 . . . . . Robots Hacked 65 | . . . . . . 4 1 2 7 . 1 . 15 6 1 16 11 1 Non-combat 13 | . . . . . . . 1 . 5 . . . . 4 . . 3 . Combat 52 | . . . . . . 4 . 2 2 . 1 . 15 2 1 16 8 1 Autooverrided 6 | . . . . . . . . . . . . . 2 1 . 1 1 1 Autoassimilated 2 | . . . . . . . . . . . . . . . . 2 . . Robot Hacks Applied 63 | . . . . . . 4 1 2 9 . 2 . 14 5 1 13 12 . parse_system 1 | . . . . . . . . . 1 . . . . . . . . . map_walls 1 | . . . . . . . . . . . . . . 1 . . . . find_fabricator 1 | . . . . . . . . . 1 . . . . . . . . . drop_inventory 4 | . . . . . . . . . 3 . . . . 1 . . . . ignore_parts 3 | . . . . . . . . . 1 . . . . 2 . . . . purge_threat 2 | . . . . . . . . . . . . . . . . . 2 . find_terminals 1 | . . . . . . . 1 . . . . . . . . . . . map_route 1 | . . . . . . . . . . . . . . . . . 1 . mark_security 1 | . . . . . . . . . . . . . . . . . 1 . link_fov 1 | . . . . . . . . . . . . . 1 . . . . . scatter_targeting 2 | . . . . . . . . . . . 1 . . . . . 1 . disrupt_area 1 | . . . . . . . . . . . . . . . . 1 . . amplify_resonance 7 | . . . . . . 1 . . 1 . 1 . 4 . . . . . disable_weapons 2 | . . . . . . 1 . . 1 . . . . . . . . . go_dormant 1 | . . . . . . . . . . . . . 1 . . . . . overwrite_iff 8 | . . . . . . 1 . 2 1 . . . 3 . . . 1 . streamctrl_high 1 | . . . . . . . . . . . . . . . . 1 . . formatsys_low 1 | . . . . . . . . . . . . . . . . . 1 . formatsys_high 24 | . . . . . . 1 . . . . . . 5 1 1 11 5 . Relay Couplers Released 79 | . . . . 8 . 14 . 13 . . 14 . 14 . . 16 . . Machine Destruction 79 | . . . . 8 . 14 . 13 . . 14 . 14 . . 16 . . Attached 38 | . . . . . . 4 1 1 . 4 7 . 4 1 1 6 3 6 Fabnet Peak Effective % . | . . . . . . . . . . . . . . . . . . . Robots Rewired 7 | . . . . . . . . . . . . . 6 . . 1 . . Allies Hacked 2 | . . . . . . . . . . . . . . . . 2 . . Hacks Repelled . | . . . . . . . . . . . . . . . . . . . Allies | -11 -10 -10 -8 -8 -8 -8 -7 -7 -7 -6 -6 -6 -6 -5 -4 -4 -3 -3 -------- Run | Yrd Mat Sub Mat Gar Mat Gar Fac Gar Fac Fac Gar Fac Gar Fac Fac Gar Res Qua Total Allies 59 | . . . . 1 . 3 . 2 1 . 4 . 18 2 1 18 8 1 Largest Group 9 | . . . . 1 1 3 . 2 . . 4 4 9 4 3 6 8 1 Highest-Rated Group 442 | . . . . 39 39 52 . 32 . . 209 204 346 108 99 442 412 343 Highest-Rated Ally 343 | . . . . 39 39 31 . 16 . . 80 80 80 29 49 148 64 343 Total Orders 3 | . . . . . . . . . . . . . . . . 2 1 . STAY 1 | . . . . . . . . . . . . . . . . 1 . . FOLLOW 1 | . . . . . . . . . . . . . . . . 1 . . DROP 1 | . . . . . . . . . . . . . . . . . 1 . Ally Attacks 380 | . . . . . 13 36 . 6 2 . 34 6 78 14 1 138 52 . Total Damage 9703 | . . . . . 224 577 . 48 13 . 1480 146 1748 243 19 3545 1660 . Kills 55 | . . . . . 1 4 . 1 . . 8 2 13 1 . 18 7 . Allies Corrupted 1 | . . . . . . . . . . . . . . . . 1 . . Allies Melted . | . . . . . . . . . . . . . . . . . . . Intel | -11 -10 -10 -8 -8 -8 -8 -7 -7 -7 -6 -6 -6 -6 -5 -4 -4 -3 -3 ------- Run | Yrd Mat Sub Mat Gar Mat Gar Fac Gar Fac Fac Gar Fac Gar Fac Fac Gar Res Qua Robot Analysis Total . | . . . . . . . . . . . . . . . . . . . Derelict Logs Recovered 2 | . . 2 . . . . . . . . . . . . . . . . Drone Launches . | . . . . . . . . . . . . . . . . . . . Drone Recoveries . | . . . . . . . . . . . . . . . . . . . Exploration | -11 -10 -10 -8 -8 -8 -8 -7 -7 -7 -6 -6 -6 -6 -5 -4 -4 -3 -3 ------------- Run | Yrd Mat Sub Mat Gar Mat Gar Fac Gar Fac Fac Gar Fac Gar Fac Fac Gar Res Qua Turns Passed 18525 | 92 1304 1255 758 1480 1149 1770 542 1007 1830 497 1696 52 1318 421 170 1982 524 678 Spaces Moved 10312 | 54 737 636 313 674 474 960 268 482 664 289 745 19 623 205 82 877 601 1609 Core 72 | 5 . . . . . . . . . . . . . . . . . 67 Treads 4020 | 49 737 636 164 153 474 68 148 482 484 . 204 19 214 . . 188 . . Legs 1934 | . . . . . . 12 . . . 2 250 . 409 205 82 688 286 . Wheels 2429 | . . . 149 521 . 880 120 . 180 287 291 . . . . 1 . . Hover . | . . . . . . . . . . . . . . . . . . . Flight 1857 | . . . . . . . . . . . . . . . . . 315 1542 Fastest Speed 14 | 50 160 160 125 140 160 155 155 160 160 120 120 240 120 190 190 120 17 14 Average Speed 143 | 149 160 160 185 165 160 159 161 175 238 140 182 240 176 190 190 158 72 27 Slowest Speed 470 | 160 160 160 320 240 240 260 240 320 245 470 330 240 190 190 190 470 259 103 Overloaded Moves 86 | . . . . . . . . . . . . . . . . . 7 79 Propulsion Burnouts . | . . . . . . . . . . . . . . . . . . . Robots Hopped 11 | . . . . . . . . . . . . . . . . . 3 8 Cave-ins Triggered . | . . . . . . . . . . . . . . . . . . . Exploration Rate (%) 47 | 4 96 51 27 96 34 90 9 62 28 9 92 1 79 11 3 97 17 93 Regions Visited 18 Branch Regions 2 Pre-discovered Areas 1 | . . 1 . . . . . . . . . . . . . . . . Known Exits Taken 8 | . . . 1 . 1 . 1 . . 1 . 1 . 1 1 . 1 . Unknown Exits Taken 4 | 1 1 1 . . . . . . 1 . . . . . . . . . Scrap Searched 3 | . . 3 . . . . . . . . . . . . . . . . Spaces Dug 28 | . . . . . . 13 . . 6 . . . . . . 1 2 6 Terrain Destroyed 316 | . 33 26 . 6 . 49 16 9 43 3 41 . . . . 9 2 79 Melee 11 | . . . . . . 2 . . . . . . . . . 1 2 6 Projectile 56 | . . . . 2 . 2 16 9 14 3 2 . . . . 6 . 2 AOE 247 | . 33 26 . 4 . 45 . . 29 . 39 . . . . . . 71 Terrain Rammed . | . . . . . . . . . . . . . . . . . . . Walls Destroyed . | . . . . . . . . . . . . . . . . . . . Machines Disabled . | . . . . . . . . . . . . . . . . . . . Actions | -11 -10 -10 -8 -8 -8 -8 -7 -7 -7 -6 -6 -6 -6 -5 -4 -4 -3 -3 --------- Run | Yrd Mat Sub Mat Gar Mat Gar Fac Gar Fac Fac Gar Fac Gar Fac Fac Gar Res Qua Total 12839 | 63 798 735 452 881 770 1125 362 576 838 361 962 25 788 233 97 1293 681 1799 Wait 646 | . . 1 75 3 189 5 33 5 54 33 9 4 11 5 4 93 4 118 Move 10281 | 53 736 635 313 673 474 959 268 481 663 288 744 19 622 204 82 876 595 1596 Hop 7 | . . . . . . . . . . . . . . . . . 2 5 Pick Up 222 | 4 13 5 18 19 10 15 7 7 17 7 16 . 15 3 5 45 11 5 Fast Attach 94 | 4 2 . 4 1 7 6 3 6 9 5 14 . 4 3 . 15 6 5 Attach 149 | 2 5 4 8 9 5 12 4 4 4 9 16 1 1 1 2 36 11 15 Detach 16 | . . . . . . . . 1 . 1 1 . . . . 5 2 6 Swap 95 | . 5 4 4 10 10 8 4 5 7 . 9 . 13 1 . 10 4 1 Drop 164 | . 2 . 6 18 13 11 10 8 17 . 7 1 12 4 3 19 21 12 Fire 977 | . 33 85 24 128 61 75 32 59 67 17 93 . 94 11 1 166 23 8 Melee 48 | . . . . . . 5 . . . . 2 . . . . 17 2 22 Ram 20 | . . . . 8 . . . . . 1 5 . . . . . . 6 Kick 2 | . . . . . . . . . . . 1 . . 1 . . . . Crush 5 | . 2 . . . 1 . 1 . . . . . . . . 1 . . Escape Stasis 106 | . . . . 12 . 29 . . . . 45 . 15 . . 5 . . Rewire 7 | . . 1 . . . . . . . . . . 1 . . 5 . . Trap . | . . . . . . . . . . . . . . . . . . . Miscellaneous . | . . . . . . . . . . . . . . . . . . . Route ------- -11/Scrapyard -10/Materials (discovered 6 exits: [*Mat x3] / [*Min x2] / *Sub) -10/Subcaves -8/Materials -8/Garrison (discovered 3 exits: *Mat x3) -8/Materials (discovered 3 exits: *Fac / Sto / Gar) -8/Garrison (discovered 3 exits: *Fac x3) -7/Factory (discovered 2 exits: [*Low] / Gar) -7/Garrison (discovered 3 exits: *Fac x3) -7/Factory -6/Factory -6/Garrison (discovered 3 exits: *Fac x3) -6/Factory -6/Garrison (discovered 4 exits: *Fac x3 / [*Fac]) -5/Factory -4/Factory -4/Garrison (discovered 3 exits: *Res x3) -3/Research (discovered 3 exits: Arm / *Qua x2) -3/Quarantine (discovered 1 exit: [*Res]) History --------- Turn | Location | Event 7 | -11/Scrapyard | Discovered new exit (range 14) 93 | -11/Scrapyard | Entered Materials 303 | -10/Materials | Build established: Mutant 359 | -10/Materials | Discovered new exit (range 14) 433 | -10/Materials | Discovered new exit (range 13) 563 | -10/Materials | Discovered new exit (range 6) 596 | -10/Materials | Discovered new exit (range 12) 954 | -10/Materials | Discovered new exit (range 9) 1379 | -10/Materials | Discovered new exit (range 9) 1397 | -10/Materials | Entered Subcaves 1533 | -10/Subcaves | Shifting Twisted Machinery released Sub. Laser 1533 | -10/Subcaves | Shifting Twisted Machinery released Battle Cannon 1567 | -10/Subcaves | Shifting Twisted Machinery released Sub. Monowheel 1588 | -10/Subcaves | Learned location of Zion (-6) 1588 | -10/Subcaves | Met a Zionite searching for "candidates" 1858 | -10/Subcaves | A swath of the cavern ceiling suddenly collapsed 2077 | -10/Subcaves | Learned Materials garrison access intel 2095 | -10/Subcaves | Core integrity fell below 50% 2159 | -10/Subcaves | Lost 3 parts (1p1n1u) 2241 | -10/Subcaves | A swath of the cavern ceiling suddenly collapsed 2364 | -10/Subcaves | Visited 4L-MR0's lab 2390 | -10/Subcaves | Found Rainbow Chip 2463 | -10/Subcaves | Learned Materials terminal intel 2492 | -10/Subcaves | Visited Clippyterm 2619 | -10/Subcaves | Discovered new exit (range 15) 2652 | -10/Subcaves | Entered Materials 2652 | -8/Materials | Evolved 4 slots: Propulsion x2, Utility x2 2653 | -8/Materials | Loaded intel: 12 terminal locations 2654 | -8/Materials | Loaded intel: 1 garrison access location 3410 | -8/Materials | Identified exit to Garrison 3410 | -8/Materials | Entered Garrison 3442 | -8/Garrison | Build established: Scavenger-Mutant 3454 | -8/Garrison | Triggered checkpoint 3516 | -8/Garrison | Garrison Relay disabled 3625 | -8/Garrison | Garrison Relay disabled 3696 | -8/Garrison | Triggered checkpoint 3824 | -8/Garrison | Triggered checkpoint 3907 | -8/Garrison | Discovered new exit (range 13) 3914 | -8/Garrison | Spotted B-75 Beast 3941 | -8/Garrison | Destroyed B-75 Beast 4112 | -8/Garrison | Triggered checkpoint 4371 | -8/Garrison | Discovered new exit (range 10) 4539 | -8/Garrison | Lost 4 parts (1p1u2w) 4612 | -8/Garrison | Core integrity fell below 50% 4640 | -8/Garrison | Triggered checkpoint 4676 | -8/Garrison | Lost 3 parts (3n) 4793 | -8/Garrison | Rescued a captive Derelict 4850 | -8/Garrison | Installed Relay Interface Framework 4873 | -8/Garrison | Discovered new exit (range 10) 4890 | -8/Garrison | Entered Materials 4890 | -8/Materials | Accompanied by 1 ally 5566 | -8/Materials | Discovered new exit (range 9) 5603 | -8/Materials | Identified exit to Storage 5838 | -8/Materials | Repaired Broken Adv. Cooling System 5889 | -8/Materials | Garrison activated, responded to threat 6039 | -8/Materials | Identified exit to Garrison 6039 | -8/Materials | Entered Garrison 6061 | -8/Garrison | Triggered checkpoint 6089 | -8/Garrison | Garrison Relay disabled 6321 | -8/Garrison | Lost 5 parts (1p1n2u1w) 6375 | -8/Garrison | Triggered checkpoint 6424 | -8/Garrison | Rescued a captive Derelict 6447 | -8/Garrison | Garrison Relay disabled 6521 | -8/Garrison | Discovered new exit (range 9) 6607 | -8/Garrison | Triggered checkpoint 6679 | -8/Garrison | Discovered new exit (range 11) 6711 | -8/Garrison | Triggered checkpoint 6732 | -8/Garrison | Garrison Relay disabled 6841 | -8/Garrison | Triggered checkpoint 6893 | -8/Garrison | Discovered new exit (range 10) 6919 | -8/Garrison | Triggered checkpoint 6941 | -8/Garrison | Garrison Relay disabled 6958 | -8/Garrison | Learned Factory security intel 7031 | -8/Garrison | Build established: Bothacker-Mutant 7119 | -8/Garrison | Triggered checkpoint 7228 | -8/Garrison | Spotted B-75 Beast 7252 | -8/Garrison | Destroyed B-75 Beast 7470 | -8/Garrison | Discovered new exit (range 20) 7470 | -8/Garrison | Discovered new exit (range 45) 7470 | -8/Garrison | Discovered new exit (range 35) 7637 | -8/Garrison | Expanded RIF knowledge: Structural Interface 7809 | -8/Garrison | Entered Factory 7809 | -7/Factory | Evolved 2 slots: Utility x2 8314 | -7/Factory | Discovered new exit (range 10) 8351 | -7/Factory | Identified exit to Garrison 8351 | -7/Factory | Entered Garrison 8445 | -7/Garrison | Expanded RIF knowledge: Coupler Efficiency 8567 | -7/Garrison | Triggered checkpoint 8597 | -7/Garrison | Garrison Relay disabled 8683 | -7/Garrison | Triggered checkpoint 8719 | -7/Garrison | Triggered checkpoint 8806 | -7/Garrison | Warlord forces raided the area 8817 | -7/Garrison | Triggered checkpoint 8881 | -7/Garrison | Triggered checkpoint 8907 | -7/Garrison | Triggered checkpoint 8956 | -7/Garrison | Attached Rainbow Chip, gained temporary slots: Power, Propulsion, Utility, Weapon 8993 | -7/Garrison | Triggered checkpoint 9001 | -7/Garrison | Discovered new exit (range 11) 9057 | -7/Garrison | Expanded RIF knowledge: Watcher Feeds 9089 | -7/Garrison | Garrison Relay disabled 9143 | -7/Garrison | Spotted B-75 Beast 9148 | -7/Garrison | Garrison Relay disabled 9186 | -7/Garrison | Destroyed B-75 Beast 9218 | -7/Garrison | Discovered new exit (range 32) 9218 | -7/Garrison | Discovered new exit (range 40) 9218 | -7/Garrison | Discovered new exit (range 79) 9254 | -7/Garrison | Build established: Bothacker-Tank 9358 | -7/Garrison | Entered Factory 9592 | -7/Factory | Repaired Med. Treads 10600 | -7/Factory | Found Prototype Launcher 10600 | -7/Factory | Identified Rocket Array 10768 | -7/Factory | Cargo convoy interrupted 10827 | -7/Factory | Discovered new exit (range 9) 11096 | -7/Factory | Core integrity fell below 50% 11138 | -7/Factory | Core integrity fell below 20% 11168 | -7/Factory | Lost 7 parts (2n4u1w) 11188 | -7/Factory | Entered another Factory area 11188 | -6/Factory | Evolved 2 slots: Propulsion x1, Utility x1 11489 | -6/Factory | Lost 6 parts (1n4u1w) 11679 | -6/Factory | Identified exit to Garrison 11685 | -6/Factory | Entered Garrison 11697 | -6/Garrison | Triggered checkpoint 11737 | -6/Garrison | Destroyed 7 combat bots 11746 | -6/Garrison | Lost 3 parts (2n1u) 11814 | -6/Garrison | Build established: Scavenger-Mutant 11961 | -6/Garrison | Triggered checkpoint 11989 | -6/Garrison | Triggered checkpoint 12035 | -6/Garrison | Triggered checkpoint 12082 | -6/Garrison | Core integrity fell below 50% 12105 | -6/Garrison | Lost 12 parts (1p5n5u1w) 12286 | -6/Garrison | Discovered new exit (range 10) 12299 | -6/Garrison | Triggered checkpoint 12403 | -6/Garrison | Lost 4 parts (2n2u) 12405 | -6/Garrison | Rescued a captive Derelict 12406 | -6/Garrison | Rescued a captive Derelict 12479 | -6/Garrison | Garrison Relay disabled 12546 | -6/Garrison | Build established: Bothacker-Mutant 12659 | -6/Garrison | Expanded RIF knowledge: Autooverride 12696 | -6/Garrison | Found embedded Infiltrators 12701 | -6/Garrison | Discovered new exit (range 11) 12703 | -6/Garrison | Triggered checkpoint 12723 | -6/Garrison | Garrison Relay disabled 12815 | -6/Garrison | Spotted B-75 Beast 12829 | -6/Garrison | Allies destroyed B-75 Beast 12858 | -6/Garrison | Found Relay Coupler [Proto] 12861 | -6/Garrison | Lost 3 parts (1n2u) 12862 | -6/Garrison | Found Relay Coupler [Proto] 12866 | -6/Garrison | Found Relay Coupler [Proto] 12956 | -6/Garrison | Build established: Botlord-Mutant 13205 | -6/Garrison | Triggered checkpoint 13307 | -6/Garrison | Garrison Relay disabled 13350 | -6/Garrison | Discovered new exit (range 10) 13381 | -6/Garrison | Entered Factory 13381 | -6/Factory | Accompanied by 4 allies 13427 | -6/Factory | Identified exit to Garrison 13433 | -6/Factory | Entered Garrison 13433 | -6/Garrison | Accompanied by 2 allies 13504 | -6/Garrison | Rescued a captive Derelict 13513 | -6/Garrison | Rescued a captive Derelict 13554 | -6/Garrison | Triggered checkpoint 13577 | -6/Garrison | Triggered checkpoint 13603 | -6/Garrison | Lost 4 allies 13682 | -6/Garrison | Garrison Relay disabled 13731 | -6/Garrison | Discovered new exit (range 15) 13807 | -6/Garrison | Triggered checkpoint 13808 | -6/Garrison | Expanded RIF knowledge: Autoassimilate 14031 | -6/Garrison | Triggered checkpoint 14203 | -6/Garrison | Triggered checkpoint 14240 | -6/Garrison | Garrison Relay disabled 14284 | -6/Garrison | Discovered new exit (range 11) 14313 | -6/Garrison | Triggered checkpoint 14330 | -6/Garrison | Discovered new exit (range 5) 14376 | -6/Garrison | Lost 3 allies 14505 | -6/Garrison | Triggered checkpoint 14522 | -6/Garrison | Core integrity fell below 20% 14586 | -6/Garrison | Spotted B-90 Cyclops 14622 | -6/Garrison | Build established: Scavenger-Mutant 14664 | -6/Garrison | Garrison Relay disabled 14723 | -6/Garrison | Discovered new exit (range 11) 14751 | -6/Garrison | Entered Factory 14751 | -5/Factory | Accompanied by 2 allies 14751 | -5/Factory | Evolved 2 slots: Propulsion x1, Utility x1 15087 | -5/Factory | Discovered new exit (range 21) 15092 | -5/Factory | Identified exit to Factory 15172 | -5/Factory | Entered another Factory area 15172 | -4/Factory | Accompanied by 2 allies 15172 | -4/Factory | Evolved 2 slots: Utility x2 15174 | -4/Factory | Build established: Botlord-Mutant 15338 | -4/Factory | Identified exit to Garrison 15342 | -4/Factory | Entered Garrison 15342 | -4/Garrison | Accompanied by 3 allies 15375 | -4/Garrison | Spotted B-90 Cyclops 15408 | -4/Garrison | Assimilated Cyclops 7a with formatsys_high 15410 | -4/Garrison | Rewired B-90 Cyclops 15784 | -4/Garrison | Triggered checkpoint 15788 | -4/Garrison | Triggered checkpoint 15855 | -4/Garrison | Expanded RIF knowledge: Patrol Navigation 15882 | -4/Garrison | Garrison Relay disabled 15966 | -4/Garrison | Spotted B-86 Titan 15970 | -4/Garrison | Triggered checkpoint 15992 | -4/Garrison | Triggered checkpoint 16000 | -4/Garrison | Allies destroyed B-86 Titan 16017 | -4/Garrison | Triggered checkpoint 16042 | -4/Garrison | Lost 6 allies 16100 | -4/Garrison | Lost 13 parts (6n5u2w) 16145 | -4/Garrison | Found Quantum Capacitor 16266 | -4/Garrison | Garrison Relay disabled 16396 | -4/Garrison | Lost 4 parts (1n2u1w) 16465 | -4/Garrison | Rescued a captive Derelict 16466 | -4/Garrison | Rescued a captive Derelict 16487 | -4/Garrison | Discovered new exit (range 14) 16539 | -4/Garrison | P-70 Sage assimilated allied J1-ZGW(g) 16568 | -4/Garrison | Core integrity fell below 50% 16602 | -4/Garrison | System corruption reached 10% 16618 | -4/Garrison | Lost 11 parts (2p4n4u1w) 16778 | -4/Garrison | Triggered checkpoint 16792 | -4/Garrison | Triggered checkpoint 16820 | -4/Garrison | Garrison Relay disabled 16877 | -4/Garrison | Discovered new exit (range 14) 16905 | -4/Garrison | Found Gamma Bomb Array 16907 | -4/Garrison | Found Gamma Bomb Array 16909 | -4/Garrison | Found Gamma Bomb Array 16980 | -4/Garrison | Lost 3 allies 16984 | -4/Garrison | Triggered checkpoint 17007 | -4/Garrison | Garrison Relay disabled 17039 | -4/Garrison | Discovered new exit (range 15) 17159 | -4/Garrison | P-70 Sage assimilated allied Sentinel 7c 17172 | -4/Garrison | System corruption reached 30% 17177 | -4/Garrison | Found Relay Coupler [Proto] 17180 | -4/Garrison | Found Relay Coupler [Proto] 17185 | -4/Garrison | Found Relay Coupler [Proto] 17188 | -4/Garrison | Found Relay Coupler [Proto] 17324 | -4/Garrison | Entered Research 17324 | -3/Research | Accompanied by 2 allies 17324 | -3/Research | Evolved 2 slots: Propulsion x1, Utility x1 17533 | -3/Research | Found Prototype Device 17533 | -3/Research | Identified Exp. Focal Shield 17558 | -3/Research | Discovered new exit (range 5) 17574 | -3/Research | First assault squad dispatched 17818 | -3/Research | Identified exit to Armory 17818 | -3/Research | Identified exit to Quarantine 17848 | -3/Research | Entered Quarantine 17929 | -3/Quarantine | Cryocooling Duct disabled 17944 | -3/Quarantine | Ambient heat levels rising (+20) 17944 | -3/Quarantine | Non-combat units ordered to evacuate 17965 | -3/Quarantine | Discovered new exit (range 3) 18076 | -3/Quarantine | Build established: Botlord-Sprinter 18098 | -3/Quarantine | Search patrols dispatched 18186 | -3/Quarantine | Repaired Cld. Impulse Thruster 18234 | -3/Quarantine | Found Alien Reactor 18244 | -3/Quarantine | Found Alien Artifact 18281 | -3/Quarantine | Lost 3 parts (1p1n1u) 18348 | -3/Quarantine | Search patrols dispatched 18407 | -3/Quarantine | Spotted Fortress 18473 | -3/Quarantine | Core integrity fell below 50% 18482 | -3/Quarantine | Identified Phase Armor 18490 | -3/Quarantine | Core integrity fell below 20% 18523 | -3/Quarantine | Lost 16 parts (1p4n8u3w) 18526 | -3/Quarantine | Destroyed by S-43 Plague with Heavy Machine Gun Last Messages --------------- 18473_ Acquired 96 matter. 18475_ Impulse Thruster Array destroyed. 18477_ Linear Accelerator destroyed. 18478_ Slammed into P-80 Master. 18478_ Relay Coupler [Proto] destroyed. 18479_ Slammed into P-80 Master. 18479_ P-80 Master knocked back. 18479_ Destabilizing: System corrupted (+2). 18480_ Slammed into P-80 Master. 18481_ P-80 Master destroyed. 18482_ Acquired 64 matter. 18482_ Identified Phase Armor. 18485_ Acquired 3 matter. 18486_ Acquired 45 matter. 18492_ Critical hit (Meltdown: +400). 18492_ Cld. Impulse Thruster destroyed. 18492_ Relay Coupler [Proto] destroyed. 18492_ Critical hit (Blast). 18492_ Acquired 10 matter. 18511_ System corrupted: Matter fused (-6). Map ----- +----------------------------------------------------+ | """ ########## """ """ """ !!!"" #?? | | ""T"" + !! ####?? | | "" "" # ##### #????? | | # #???# #????? | | """ + #???# #????? | | * """ # #???# ##### ### ############ #????? | | """ # #???# #???# #?#+##########?# #???## | | # #???# #???# #?# #?# "##### | | ##+##### #???# #???# #?# ! #?# "%" %+ | | !! # #???#+##### #?# #?# " + | | !! # #???? ## #?# """ """ #?# / | | !! + #????" ## #?# """ """ #?# / | | # #????" ##s#?# """ """ #?####+##### | | # #???"" ## #?# #??? ??## | | """ # #??""" ##s### """ """ #?""" #??? | | """ # ## """ # s # """ """ # """ #??? | | """ ! # ## """ # # """ """ # """ #??? | | # + """ # + # #??? | | #+###### ## """ # s# """ """ # #??? | | # #????# ## """ # # """ """ ? #??? | | # #????# ## # #! """ """ # ""T"" #??? | | # #??### ######+### # #?""""" #??? | | # #??#"" ###+########?########??? | | # #??#"T # #?????????????? | | # #??### # "" #?????????????? | | #????# @/ "" #?????????????? | | #??####"########+### < # """"" #?????????????? | | #### # # # "!""" #?????????????? | | + "" # # # """"" #?????????????? | | # """ # ! ###### "" #?????????????? | | # S" # """"#????# ""? #?????????????? | | # """ # """"#????# ??#?????????????? | | + """ # """"#????#######????????????????? | | # # """"#???????????????????????????? | | ##+### + #???????????????????????????? | | # """ ###########???????????????????????????? | | # """ #?????????????????????????????????????? | | # """ #?????????????????????????????????????? | | # #?????????????????????????????????????? | | " #######?????????????????????????????????????? | | " #???????????????????????????????????????????? | | " #???????????????????????????????????????????? | | #???????????????????????????????????????????? | | #####????????????????????????????????????????????? | | | | | | | | | | | | | +----------------------------------------------------+ Best States ------------- Heat Dissipation 96 Coolant Potential 65 Energy Generation 31 Energy Capacity 360 Matter Stores 300 Matter Capacity 300 Sight Range 20 Terrain Scan Density 10 Jamming Range 14 Power Amplification 30 Armor Coverage 450 Resistance: KI 30 Resistance: TH 15 Utility Shielding 33 Weapon Cycling 20 Evasion (%) 66 Launcher Accuracy 80 Recoil Reduction 6 Offensive Hacking 11 Relay Coupler Types 5 Relay Coupler Value 197 Item Schematics ----------------- None Robot Schematics ------------------ None Fabricated ------------ Nothing Alien Tech Used ----------------- Phase Armor Achievements -------------- None Challenges ------------ None Game ------ Seed CompactDecoderCompactor Manual? 0 Play Time 02:54:36 Cumulative 178.3 hours Start 2024.04.19 @ 23:24:56 End 2024.04.20 @ 17:12:22 Sessions 5 Manual Loads 0 Difficulty Rogue Special Mode None Game No. 185 Rogue 149 Adventurer 36 Explorer 0 Win Type - Total 10 Types 3/0/7/0/0/0/0/0/0 Lore% 56 Gallery% 81 Achievement% 69 Wizard Run 0 Options --------- Layout 0 ASCII 0 Keyboard 0 Movement Mouse Keybinds 0 Fullscreen 1 Font 18/SmallcapsGlow Map View 76x50 Zoom Use 0% Tactical HUD 1 Map Filters NONE Filters NONE Steam 1 RUN: 9e6e0267-3f27-4621-b4a1-e8129d013c96